[Event "Early-Titled-Tuesday-Blitz-March-19-2024"]
[Site "Chess.com"]
[Date "2024.03.19"]
[Round "1"]
[White "Rodalquilar"]
[Black "EternalNight8"]
[Result "1/2-1/2"]
[WhiteElo "2800"]
[BlackElo "2488"]
[TimeControl "180+1"]
[EndTime "8:08:12 PDT"]
[Termination "Game drawn by repetition"]

1. d4 {[%clk 0:03:00.9]} 1... Nf6 {[%clk 0:02:59.4]} 2. Nf3 {[%clk 0:03:01.2]}
2... e6 {[%clk 0:02:58.8]} 3. Bf4 {[%clk 0:03:01.4]} 3... d5 {[%clk 0:02:53.4]}
4. e3 {[%clk 0:03:01.5]} 4... c5 {[%clk 0:02:53.2]} 5. Nbd2 {[%clk 0:03:00.8]}
5... Nc6 {[%clk 0:02:52.4]} 6. c3 {[%clk 0:03:00.8]} 6... Nh5 {[%clk 0:02:27.7]}
7. Bg5 {[%clk 0:03:00.5]} 7... f6 {[%clk 0:02:16.9]} 8. Ne5 {[%clk 0:03:00.5]}
8... g6 {[%clk 0:02:14.7]} 9. g4 {[%clk 0:03:00.6]} 9... fxg5 {[%clk 0:02:01.8]}
10. gxh5 {[%clk 0:02:59.9]} 10... Nxe5 {[%clk 0:02:01.5]} 11. dxe5 {[%clk
0:03:00.8]} 11... Bg7 {[%clk 0:01:59.9]} 12. h4 {[%clk 0:02:57]} 12... gxh4
{[%clk 0:01:49.8]} 13. hxg6 {[%clk 0:02:42.6]} 13... hxg6 {[%clk 0:01:49.5]} 14.
Qg4 {[%clk 0:02:42.8]} 14... Qe7 {[%clk 0:01:28.1]} 15. Bb5+ {[%clk 0:02:30.7]}
15... Bd7 {[%clk 0:01:16.5]} 16. Qxg6+ {[%clk 0:02:30.2]} 16... Kd8 {[%clk
0:01:16.7]} 17. Bxd7 {[%clk 0:02:23.6]} 17... Kxd7 {[%clk 0:01:17.6]} 18. O-O-O
{[%clk 0:02:23.1]} 18... Bxe5 {[%clk 0:01:12.7]} 19. Nf3 {[%clk 0:01:37.1]}
19... Bf6 {[%clk 0:01:11.6]} 20. c4 {[%clk 0:01:35.3]} 20... Rag8 {[%clk
0:01:03.3]} 21. Qc2 {[%clk 0:01:24.8]} 21... Kc8 {[%clk 0:00:48.7]} 22. cxd5
{[%clk 0:01:24.3]} 22... exd5 {[%clk 0:00:48.6]} 23. Rxd5 {[%clk 0:01:24.5]}
23... Kb8 {[%clk 0:00:48.5]} 24. Qf5 {[%clk 0:01:08.7]} 24... Qg7 {[%clk
0:00:39.3]} 25. Rd7 {[%clk 0:00:48.3]} 25... Bxb2+ {[%clk 0:00:38.1]} 26. Kb1
{[%clk 0:00:48.6]} 26... Qc3 {[%clk 0:00:37.4]} 27. Rd3 {[%clk 0:00:23.7]} 27...
Qf6 {[%clk 0:00:33.2]} 28. Qe4 {[%clk 0:00:07.5]} 28... Re8 {[%clk 0:00:32.7]}
29. Qg4 {[%clk 0:00:07.6]} 29... Rhg8 {[%clk 0:00:29.2]} 30. Qf4+ {[%clk
0:00:07.6]} 30... Qxf4 {[%clk 0:00:28.7]} 31. exf4 {[%clk 0:00:08.5]} 31... Bf6
{[%clk 0:00:27.9]} 32. Nxh4 {[%clk 0:00:09.1]} 32... Rh8 {[%clk 0:00:27.9]} 33.
Rdh3 {[%clk 0:00:09.3]} 33... Re2 {[%clk 0:00:25.9]} 34. Nf5 {[%clk 0:00:05.8]}
34... Rb2+ {[%clk 0:00:25.2]} 35. Kc1 {[%clk 0:00:05.8]} 35... Rxh3 {[%clk
0:00:18.1]} 36. Rxh3 {[%clk 0:00:06.7]} 36... Rxf2 {[%clk 0:00:18.3]} 37. Rh6
{[%clk 0:00:07.1]} 37... Bd4 {[%clk 0:00:16.4]} 38. Nd6 {[%clk 0:00:03.4]} 38...
Rxf4 {[%clk 0:00:15]} 39. Rh7 {[%clk 0:00:03.8]} 39... Be5 {[%clk 0:00:13.9]}
40. Nxb7 {[%clk 0:00:03.6]} 40... Rc4+ {[%clk 0:00:12.6]} 41. Kd2 {[%clk
0:00:03.2]} 41... Bf4+ {[%clk 0:00:11]} 42. Ke2 {[%clk 0:00:03.1]} 42... Rc2+
{[%clk 0:00:10.7]} 43. Kf3 {[%clk 0:00:03.4]} 43... Bc7 {[%clk 0:00:10.9]} 44.
Ke4 {[%clk 0:00:01.5]} 44... Kxb7 {[%clk 0:00:10.7]} 45. Kd5 {[%clk 0:00:02]}
45... Kb6 {[%clk 0:00:10.7]} 46. Rh6+ {[%clk 0:00:02]} 46... Kb7 {[%clk
0:00:11.1]} 47. a4 {[%clk 0:00:01.1]} 47... c4 {[%clk 0:00:10.9]} 48. Kd4 {[%clk
0:00:01.5]} 48... Bb6+ {[%clk 0:00:10.4]} 49. Kd5 {[%clk 0:00:02.1]} 49... c3
{[%clk 0:00:10.3]} 50. Kc4 {[%clk 0:00:02.7]} 50... Rc1 {[%clk 0:00:10.2]} 51.
Kb3 {[%clk 0:00:03]} 51... c2 {[%clk 0:00:09.7]} 52. Kb2 {[%clk 0:00:03.6]}
52... Be3 {[%clk 0:00:09]} 53. Rh3 {[%clk 0:00:03.2]} 53... Bg5 {[%clk
0:00:08.6]} 54. Rg3 {[%clk 0:00:03.5]} 54... Bf4 {[%clk 0:00:06.3]} 55. Rf3
{[%clk 0:00:03.9]} 55... Bg5 {[%clk 0:00:06.2]} 56. Rg3 {[%clk 0:00:04.4]} 56...
Bd2 {[%clk 0:00:06.1]} 57. Rd3 {[%clk 0:00:04.4]} 57... Bh6 {[%clk 0:00:05.4]}
58. Rh3 {[%clk 0:00:04.4]} 58... Bg5 {[%clk 0:00:04]} 59. Rg3 {[%clk 0:00:04.8]}
1/2-1/2

[Event "Early-Titled-Tuesday-Blitz-March-19-2024"]
[Site "Chess.com"]
[Date "2024.03.19"]
[Round "1"]
[White "dropstoneDP"]
[Black "musclemonster12"]
[Result "0-1"]
[WhiteElo "2973"]
[BlackElo "2563"]
[TimeControl "180+1"]
[EndTime "8:08:13 PDT"]
[Termination "musclemonster12 won on time"]

1. e4 {[%clk 0:03:00.9]} 1... c6 {[%clk 0:02:57.2]} 2. d4 {[%clk 0:02:59.6]}
2... d5 {[%clk 0:02:57.4]} 3. e5 {[%clk 0:02:59.9]} 3... c5 {[%clk 0:02:57.5]}
4. c3 {[%clk 0:02:58]} 4... Nc6 {[%clk 0:02:55.1]} 5. a3 {[%clk 0:02:57.4]} 5...
c4 {[%clk 0:02:28.1]} 6. Nd2 {[%clk 0:02:48]} 6... Bf5 {[%clk 0:02:27.1]} 7. Ne2
{[%clk 0:02:44.4]} 7... e6 {[%clk 0:02:25]} 8. Ng3 {[%clk 0:02:45]} 8... Bg6
{[%clk 0:02:24.7]} 9. h4 {[%clk 0:02:45.2]} 9... h6 {[%clk 0:02:24.4]} 10. h5
{[%clk 0:02:45]} 10... Bh7 {[%clk 0:02:24.1]} 11. Nf3 {[%clk 0:02:45.3]} 11...
Nge7 {[%clk 0:02:23.3]} 12. Be2 {[%clk 0:02:45.4]} 12... Nf5 {[%clk 0:02:22.1]}
13. Nxf5 {[%clk 0:02:43.8]} 13... Bxf5 {[%clk 0:02:23]} 14. Nh4 {[%clk
0:02:42.5]} 14... Bh7 {[%clk 0:02:22.4]} 15. b4 {[%clk 0:02:30.2]} 15... cxb3
{[%clk 0:01:41.4]} 16. Qxb3 {[%clk 0:02:30.1]} 16... Qd7 {[%clk 0:01:40.2]} 17.
a4 {[%clk 0:02:22.1]} 17... Be7 {[%clk 0:01:38]} 18. Ba3 {[%clk 0:02:20]} 18...
O-O {[%clk 0:01:37.6]} 19. Bxe7 {[%clk 0:02:17.2]} 19... Qxe7 {[%clk 0:01:36.8]}
20. g3 {[%clk 0:02:12.8]} 20... b6 {[%clk 0:01:31.1]} 21. O-O {[%clk 0:02:10.6]}
21... Na5 {[%clk 0:01:24.8]} 22. Qd1 {[%clk 0:02:01.6]} 22... Rac8 {[%clk
0:01:24.5]} 23. Rc1 {[%clk 0:01:55.2]} 23... Qa3 {[%clk 0:01:24]} 24. Bd3 {[%clk
0:01:55.6]} 24... Rxc3 {[%clk 0:01:06.5]} 25. Bxh7+ {[%clk 0:01:52.2]} 25...
Kxh7 {[%clk 0:01:06.5]} 26. Qd2 {[%clk 0:01:41.3]} 26... Rfc8 {[%clk 0:01:05.5]}
27. Rxc3 {[%clk 0:01:41.1]} 27... Qxc3 {[%clk 0:01:05.3]} 28. Qf4 {[%clk
0:01:40.8]} 28... Rc7 {[%clk 0:01:04.6]} 29. g4 {[%clk 0:01:38.6]} 29... Qd3
{[%clk 0:01:00.5]} 30. g5 {[%clk 0:01:15.4]} 30... hxg5 {[%clk 0:00:58.8]} 31.
Qxg5 {[%clk 0:01:16.3]} 31... Qxd4 {[%clk 0:00:58.5]} 32. Ng6 {[%clk 0:01:15.1]}
32... Rc4 {[%clk 0:00:47.9]} 33. Kh2 {[%clk 0:01:11.6]} 33... Qg4 {[%clk
0:00:45.5]} 34. Qxg4 {[%clk 0:00:35.6]} 34... Rxg4 {[%clk 0:00:46.4]} 35. Ne7
{[%clk 0:00:36.5]} 35... Rxa4 {[%clk 0:00:39.6]} 36. f4 {[%clk 0:00:37]} 36...
d4 {[%clk 0:00:38.9]} 37. f5 {[%clk 0:00:37.2]} 37... exf5 {[%clk 0:00:35.8]}
38. Nxf5 {[%clk 0:00:28.7]} 38... d3 {[%clk 0:00:33.9]} 39. Nd6 {[%clk
0:00:26.8]} 39... d2 {[%clk 0:00:30.8]} 40. Nxf7 {[%clk 0:00:25.7]} 40... Rd4
{[%clk 0:00:30.1]} 41. Rd1 {[%clk 0:00:16.8]} 41... Nc4 {[%clk 0:00:29.9]} 42.
e6 {[%clk 0:00:17.4]} 42... Kg8 {[%clk 0:00:28.8]} 43. Ng5 {[%clk 0:00:15.5]}
43... Rd5 {[%clk 0:00:25.6]} 44. Nf3 {[%clk 0:00:09.5]} 44... Rxh5+ {[%clk
0:00:22.5]} 45. Kg3 {[%clk 0:00:09.8]} 45... Rd5 {[%clk 0:00:23.4]} 46. Kf4
{[%clk 0:00:08.1]} 46... Kf8 {[%clk 0:00:22.8]} 47. Ke4 {[%clk 0:00:06.7]} 47...
Rd6 {[%clk 0:00:22.7]} 48. Nd4 {[%clk 0:00:07]} 48... g6 {[%clk 0:00:19.8]} 49.
Rf1+ {[%clk 0:00:04.9]} 49... Ke8 {[%clk 0:00:19.1]} 50. Rh1 {[%clk 0:00:02.9]}
50... Nb2 {[%clk 0:00:17]} 51. Rh8+ {[%clk 0:00:03.5]} 51... Ke7 {[%clk
0:00:17.4]} 52. Rh7+ {[%clk 0:00:04.1]} 52... Kf6 {[%clk 0:00:17.8]} 53. e7
{[%clk 0:00:02.3]} 53... Rxd4+ {[%clk 0:00:17.9]} 54. Ke3 {[%clk 0:00:02.2]}
54... Nc4+ {[%clk 0:00:17.1]} 55. Kf2 {[%clk 0:00:01.8]} 55... Re4 {[%clk
0:00:17.6]} 0-1

[Event "Early-Titled-Tuesday-Blitz-March-19-2024"]
[Site "Chess.com"]
[Date "2024.03.19"]
[Round "1"]
[White "MightyMike_009"]
[Black "BashirliSaadat"]
[Result "1-0"]
[WhiteElo "2719"]
[BlackElo "2365"]
[TimeControl "180+1"]
[EndTime "8:08:20 PDT"]
[Termination "MightyMike_009 won by resignation"]

1. d4 {[%clk 0:03:00.9]} 1... d5 {[%clk 0:02:59.7]} 2. c4 {[%clk 0:03:01.3]}
2... e6 {[%clk 0:03:00.2]} 3. Nc3 {[%clk 0:03:01.8]} 3... c6 {[%clk 0:03:00.7]}
4. Nf3 {[%clk 0:03:01.5]} 4... dxc4 {[%clk 0:03:01]} 5. a4 {[%clk 0:03:00.4]}
5... Bb4 {[%clk 0:03:00.4]} 6. e3 {[%clk 0:03:00.4]} 6... b5 {[%clk 0:03:00.9]}
7. axb5 {[%clk 0:03:00.5]} 7... cxb5 {[%clk 0:03:01.2]} 8. Bd2 {[%clk
0:03:00.8]} 8... Qb6 {[%clk 0:02:59.3]} 9. Ne5 {[%clk 0:02:16.8]} 9... Nf6
{[%clk 0:02:53.2]} 10. Be2 {[%clk 0:01:49.2]} 10... O-O {[%clk 0:02:49.6]} 11.
O-O {[%clk 0:01:49.5]} 11... Bb7 {[%clk 0:02:45.3]} 12. f4 {[%clk 0:01:49.7]}
12... Nbd7 {[%clk 0:02:39.7]} 13. Nd5 {[%clk 0:01:34.2]} 13... Nxd5 {[%clk
0:02:19.8]} 14. Nxd7 {[%clk 0:01:31.9]} 14... Qc6 {[%clk 0:02:17]} 15. Nxf8
{[%clk 0:01:15.6]} 15... Bxf8 {[%clk 0:01:06.1]} 16. Bf3 {[%clk 0:01:12.5]}
16... Qc7 {[%clk 0:01:04]} 17. Ba5 {[%clk 0:01:10.9]} 17... Qd7 {[%clk
0:01:02.2]} 18. Qd2 {[%clk 0:01:07.6]} 18... b4 {[%clk 0:00:58.6]} 19. Rfc1
{[%clk 0:01:06.8]} 19... Rc8 {[%clk 0:00:55]} 20. Qe2 {[%clk 0:00:49]} 20... f5
{[%clk 0:00:38.6]} 21. h3 {[%clk 0:00:40.6]} 21... h6 {[%clk 0:00:24.7]} 22. Kh2
{[%clk 0:00:40.4]} 22... Kh7 {[%clk 0:00:22.7]} 23. g4 {[%clk 0:00:38.7]} 23...
fxg4 {[%clk 0:00:22.2]} 24. hxg4 {[%clk 0:00:39.6]} 24... Bd6 {[%clk 0:00:19.8]}
25. Be4+ {[%clk 0:00:35.8]} 25... Kg8 {[%clk 0:00:19.4]} 26. Qf3 {[%clk
0:00:36]} 26... c3 {[%clk 0:00:17.2]} 27. bxc3 {[%clk 0:00:35.4]} 27... bxc3
{[%clk 0:00:17.5]} 28. Bxc3 {[%clk 0:00:33.6]} 28... Qc7 {[%clk 0:00:12.5]} 29.
Bd2 {[%clk 0:00:33.6]} 29... Qd7 {[%clk 0:00:11.8]} 30. Rxa7 {[%clk 0:00:32.2]}
30... Rxc1 {[%clk 0:00:11]} 31. Bxc1 {[%clk 0:00:33.1]} 31... Qc6 {[%clk
0:00:10.8]} 32. Bd2 {[%clk 0:00:32.4]} 32... Qb6 {[%clk 0:00:09.9]} 33. Rxb7
{[%clk 0:00:26.7]} 33... Qxb7 {[%clk 0:00:09.6]} 34. Kh3 {[%clk 0:00:21.7]}
34... Qb2 {[%clk 0:00:09.3]} 35. Bxd5 {[%clk 0:00:21.1]} 35... exd5 {[%clk
0:00:04]} 36. Qxd5+ {[%clk 0:00:22]} 36... Kh7 {[%clk 0:00:04.1]} 37. Qxd6
{[%clk 0:00:19.1]} 37... Qxd2 {[%clk 0:00:04.7]} 38. Qe5 {[%clk 0:00:19.4]}
38... Qe1 {[%clk 0:00:05.1]} 39. Qe4+ {[%clk 0:00:19.1]} 39... Kg8 {[%clk
0:00:04.8]} 40. Qf3 {[%clk 0:00:19.5]} 40... Qd2 {[%clk 0:00:04.2]} 41. d5
{[%clk 0:00:19.6]} 41... Qd3 {[%clk 0:00:04.4]} 42. Kg3 {[%clk 0:00:19.7]} 42...
Qb1 {[%clk 0:00:03.8]} 43. e4 {[%clk 0:00:20]} 43... Qg1+ {[%clk 0:00:04.1]} 44.
Kh3 {[%clk 0:00:20.6]} 44... Qd4 {[%clk 0:00:03.8]} 45. e5 {[%clk 0:00:20.4]}
45... Qd2 {[%clk 0:00:03.7]} 46. d6 {[%clk 0:00:20.5]} 46... Qd4 {[%clk
0:00:03.3]} 47. Kg3 {[%clk 0:00:20.5]} 47... Qc5 {[%clk 0:00:03.4]} 48. Qd3
{[%clk 0:00:20.4]} 48... Qg1+ {[%clk 0:00:02.3]} 49. Kf3 {[%clk 0:00:21]} 49...
Qh1+ {[%clk 0:00:02.5]} 50. Ke3 {[%clk 0:00:20.9]} 50... Qg1+ {[%clk 0:00:03]}
51. Ke4 {[%clk 0:00:21.1]} 51... Qxg4 {[%clk 0:00:02.9]} 52. d7 {[%clk
0:00:21.4]} 52... Qg6+ {[%clk 0:00:03]} 53. Kd4 {[%clk 0:00:20.4]} 53... Qb6+
{[%clk 0:00:03.3]} 54. Kd5 {[%clk 0:00:20.7]} 54... Qb7+ {[%clk 0:00:03.3]} 55.
Ke6 {[%clk 0:00:20.9]} 55... Qc6+ {[%clk 0:00:03]} 56. Qd6 {[%clk 0:00:20.5]}
56... Qc4+ {[%clk 0:00:03.3]} 57. Qd5 {[%clk 0:00:21.1]} 57... Qa6+ {[%clk
0:00:03.2]} 58. Ke7+ {[%clk 0:00:21.4]} 58... Kh7 {[%clk 0:00:02.6]} 59. d8=Q
{[%clk 0:00:21.9]} 59... Qa7+ {[%clk 0:00:03]} 60. Q8d7 {[%clk 0:00:22.3]} 60...
Qa3+ {[%clk 0:00:03.4]} 61. Q7d6 {[%clk 0:00:21.6]} 61... Qa7+ {[%clk
0:00:03.9]} 62. Ke6 {[%clk 0:00:21]} 62... Qa1 {[%clk 0:00:02.3]} 63. Qd3+
{[%clk 0:00:21.3]} 63... g6 {[%clk 0:00:02.3]} 64. Qe7+ {[%clk 0:00:21.8]} 1-0

[Event "Early-Titled-Tuesday-Blitz-March-19-2024"]
[Site "Chess.com"]
[Date "2024.03.19"]
[Round "1"]
[White "GHANDEEVAM2003"]
[Black "ahkashefi2800"]
[Result "1-0"]
[WhiteElo "3068"]
[BlackElo "2563"]
[TimeControl "180+1"]
[EndTime "8:08:23 PDT"]
[Termination "GHANDEEVAM2003 won on time"]

1. b3 {[%clk 0:03:00.9]} 1... d5 {[%clk 0:02:59.1]} 2. Bb2 {[%clk 0:03:01.6]}
2... c6 {[%clk 0:02:59.4]} 3. Nf3 {[%clk 0:03:02]} 3... Nf6 {[%clk 0:02:59.6]}
4. c4 {[%clk 0:03:02.1]} 4... Bf5 {[%clk 0:02:59.9]} 5. Nh4 {[%clk 0:03:01.9]}
5... Bg6 {[%clk 0:02:57.9]} 6. g3 {[%clk 0:03:00.4]} 6... Nbd7 {[%clk
0:02:57.8]} 7. Bg2 {[%clk 0:03:00.3]} 7... e6 {[%clk 0:02:56.4]} 8. O-O {[%clk
0:03:00.1]} 8... Be7 {[%clk 0:02:55.9]} 9. d4 {[%clk 0:02:57.9]} 9... O-O {[%clk
0:02:47.2]} 10. Nxg6 {[%clk 0:02:57.3]} 10... hxg6 {[%clk 0:02:47.1]} 11. Nd2
{[%clk 0:02:58]} 11... a5 {[%clk 0:02:45.1]} 12. a3 {[%clk 0:02:55.9]} 12... Re8
{[%clk 0:02:44.8]} 13. Qc2 {[%clk 0:02:55.9]} 13... Bd6 {[%clk 0:02:39.2]} 14.
Rfd1 {[%clk 0:02:51.8]} 14... Qe7 {[%clk 0:02:39.1]} 15. e3 {[%clk 0:02:41.7]}
15... e5 {[%clk 0:02:33.6]} 16. cxd5 {[%clk 0:02:40.7]} 16... cxd5 {[%clk
0:02:33.8]} 17. dxe5 {[%clk 0:02:39.4]} 17... Bxe5 {[%clk 0:02:28.6]} 18. Nf3
{[%clk 0:02:39.2]} 18... Bxb2 {[%clk 0:02:28.5]} 19. Qxb2 {[%clk 0:02:39.5]}
19... Nc5 {[%clk 0:02:28.9]} 20. Nd4 {[%clk 0:02:32.5]} 20... Rac8 {[%clk
0:02:23.4]} 21. Rac1 {[%clk 0:02:31.5]} 21... Nfe4 {[%clk 0:02:15.4]} 22. Nb5
{[%clk 0:02:31]} 22... Nxf2 {[%clk 0:01:36.3]} 23. Qxf2 {[%clk 0:02:30.3]} 23...
Nd3 {[%clk 0:01:35.8]} 24. Rxd3 {[%clk 0:02:23.7]} 24... Rxc1+ {[%clk
0:01:34.8]} 25. Bf1 {[%clk 0:02:24.5]} 25... Qc5 {[%clk 0:01:31.3]} 26. a4
{[%clk 0:02:13.7]} 26... Re6 {[%clk 0:01:26.4]} 27. Rd4 {[%clk 0:02:05]} 27...
Rc2 {[%clk 0:01:01.5]} 28. Qf3 {[%clk 0:01:46.7]} 28... Rf6 {[%clk 0:00:58.1]}
29. Rf4 {[%clk 0:01:46.5]} 29... Rb2 {[%clk 0:00:53.1]} 30. Nd4 {[%clk
0:01:40.1]} 30... Rxf4 {[%clk 0:00:50.7]} 31. Qxf4 {[%clk 0:01:41]} 31... Qc1
{[%clk 0:00:46.1]} 32. Nf3 {[%clk 0:01:32]} 32... f6 {[%clk 0:00:32.7]} 33. Nd4
{[%clk 0:01:22.5]} 33... Qd2 {[%clk 0:00:27.9]} 34. g4 {[%clk 0:01:21.9]} 34...
g5 {[%clk 0:00:26.7]} 35. Qg3 {[%clk 0:01:21.2]} 35... Rb1 {[%clk 0:00:24.8]}
36. Qf3 {[%clk 0:01:11.1]} 36... Re1 {[%clk 0:00:22.9]} 37. Nf5 {[%clk
0:01:01.8]} 37... b6 {[%clk 0:00:09.9]} 38. Qxd5+ {[%clk 0:00:56.8]} 38... Qxd5
{[%clk 0:00:05.4]} 39. Ne7+ {[%clk 0:00:57.5]} 39... Kf7 {[%clk 0:00:05.3]} 40.
Nxd5 {[%clk 0:00:58.4]} 40... Ke6 {[%clk 0:00:04.2]} 41. Nxb6 {[%clk 0:00:55.6]}
41... Rxe3 {[%clk 0:00:04.4]} 42. Kf2 {[%clk 0:00:56.1]} 42... Rc3 {[%clk
0:00:03.5]} 43. Bc4+ {[%clk 0:00:49.5]} 43... Ke5 {[%clk 0:00:03.5]} 44. Nd5
{[%clk 0:00:46.7]} 44... Rc2+ {[%clk 0:00:03.2]} 45. Kg3 {[%clk 0:00:46]} 45...
g6 {[%clk 0:00:04.1]} 46. Ne7 {[%clk 0:00:45]} 46... Rc3+ {[%clk 0:00:02.8]} 47.
Kf2 {[%clk 0:00:43.5]} 47... Rc2+ {[%clk 0:00:03.1]} 48. Ke3 {[%clk 0:00:38.8]}
48... Rxh2 {[%clk 0:00:01.9]} 49. Nxg6+ {[%clk 0:00:39.4]} 49... Kd6 {[%clk
0:00:02.4]} 50. Ke4 {[%clk 0:00:39.6]} 50... Rf2 {[%clk 0:00:02.4]} 51. Ke3
{[%clk 0:00:35.6]} 51... Rg2 {[%clk 0:00:02.8]} 52. Kf3 {[%clk 0:00:35.9]} 52...
Rc2 {[%clk 0:00:03.2]} 53. Nh8 {[%clk 0:00:32.9]} 53... Rh2 {[%clk 0:00:02.5]}
54. Nf7+ {[%clk 0:00:31]} 54... Ke7 {[%clk 0:00:03.1]} 55. Ke4 {[%clk
0:00:30.2]} 55... Rf2 {[%clk 0:00:02.3]} 56. Nh6 {[%clk 0:00:30.2]} 56... Rf4+
{[%clk 0:00:02.6]} 57. Kd5 {[%clk 0:00:30.6]} 57... Kf8 {[%clk 0:00:02.9]} 58.
Be2 {[%clk 0:00:28.7]} 58... Kg7 {[%clk 0:00:02.4]} 59. Nf5+ {[%clk 0:00:28.1]}
59... Kf7 {[%clk 0:00:02.8]} 60. Kc5 {[%clk 0:00:26.9]} 60... Ke6 {[%clk
0:00:02.6]} 61. Kb5 {[%clk 0:00:24.6]} 61... Rb4+ {[%clk 0:00:02.9]} 62. Kxa5
{[%clk 0:00:24.9]} 62... Ke5 {[%clk 0:00:03.4]} 63. Kxb4 {[%clk 0:00:24.9]} 1-0

[Event "Early-Titled-Tuesday-Blitz-March-19-2024"]
[Site "Chess.com"]
[Date "2024.03.19"]
[Round "1"]
[White "GP9isback23"]
[Black "vi_pranav"]
[Result "0-1"]
[WhiteElo "2561"]
[BlackElo "3051"]
[TimeControl "180+1"]
[EndTime "8:08:24 PDT"]
[Termination "vi_pranav won by resignation"]

1. d4 {[%clk 0:02:59.5]} 1... Nf6 {[%clk 0:02:59.2]} 2. Nf3 {[%clk 0:02:59.8]}
2... b5 {[%clk 0:02:58.8]} 3. e3 {[%clk 0:02:54.9]} 3... a6 {[%clk 0:02:57.9]}
4. c3 {[%clk 0:02:54.7]} 4... Bb7 {[%clk 0:02:57.9]} 5. a4 {[%clk 0:02:54.5]}
5... bxa4 {[%clk 0:02:54]} 6. Rxa4 {[%clk 0:02:51.8]} 6... e6 {[%clk 0:02:53.7]}
7. Nbd2 {[%clk 0:02:51.9]} 7... Be7 {[%clk 0:02:53.6]} 8. Be2 {[%clk 0:02:52.2]}
8... O-O {[%clk 0:02:53.6]} 9. O-O {[%clk 0:02:52.8]} 9... d6 {[%clk 0:02:51.9]}
10. Bd3 {[%clk 0:02:50.6]} 10... Nbd7 {[%clk 0:02:51.5]} 11. Qe2 {[%clk
0:02:50.6]} 11... a5 {[%clk 0:02:34]} 12. b3 {[%clk 0:02:46.5]} 12... Nb6 {[%clk
0:02:31.3]} 13. Ra2 {[%clk 0:02:46.4]} 13... a4 {[%clk 0:02:28.2]} 14. b4 {[%clk
0:02:42]} 14... c5 {[%clk 0:02:24.9]} 15. bxc5 {[%clk 0:02:09.8]} 15... dxc5
{[%clk 0:02:25.8]} 16. Bb2 {[%clk 0:02:10.4]} 16... cxd4 {[%clk 0:02:23.6]} 17.
cxd4 {[%clk 0:02:08.8]} 17... a3 {[%clk 0:02:22.9]} 18. Bc3 {[%clk 0:02:03.6]}
18... Nbd5 {[%clk 0:02:20.1]} 19. Rc1 {[%clk 0:01:53.4]} 19... Nxc3 {[%clk
0:02:14]} 20. Rxc3 {[%clk 0:01:51.5]} 20... Qa5 {[%clk 0:02:12.2]} 21. Rc1
{[%clk 0:01:48.2]} 21... Bd5 {[%clk 0:02:06.8]} 22. Bc4 {[%clk 0:01:48.3]} 22...
Rfc8 {[%clk 0:02:01.9]} 23. Rca1 {[%clk 0:01:43.8]} 23... Ne4 {[%clk 0:01:51.7]}
24. Bxd5 {[%clk 0:01:37.3]} 24... Nc3 {[%clk 0:01:48.6]} 25. Qd3 {[%clk
0:01:32.1]} 25... Nxd5 {[%clk 0:01:35.6]} 26. Rc2 {[%clk 0:01:24.9]} 26... Rxc2
{[%clk 0:01:31.8]} 27. Qxc2 {[%clk 0:01:25.8]} 27... Qc3 {[%clk 0:01:30.9]} 28.
Qxc3 {[%clk 0:00:59.9]} 28... Nxc3 {[%clk 0:01:31.8]} 29. Ne1 {[%clk 0:01:00.6]}
29... a2 {[%clk 0:01:29.3]} 30. Nd3 {[%clk 0:01:00.2]} 30... Rb8 {[%clk
0:01:23.7]} 31. Kf1 {[%clk 0:00:59.1]} 31... Rb1+ {[%clk 0:01:20.5]} 32. Nxb1
{[%clk 0:00:57.5]} 32... axb1=Q+ {[%clk 0:01:21.4]} 33. Rxb1 {[%clk 0:00:57.8]}
33... Nxb1 {[%clk 0:01:22.3]} 34. Ke2 {[%clk 0:00:56.9]} 34... Kf8 {[%clk
0:01:17]} 35. g3 {[%clk 0:00:49.2]} 35... Bd6 {[%clk 0:01:16.4]} 36. Nb2 {[%clk
0:00:48.2]} 36... Ke7 {[%clk 0:01:13.3]} 37. f4 {[%clk 0:00:47.9]} 37... f5
{[%clk 0:01:09.8]} 38. Kd3 {[%clk 0:00:47.4]} 38... Bb4 {[%clk 0:01:06.4]} 39.
Nc4 {[%clk 0:00:44.8]} 39... Nc3 {[%clk 0:01:05.5]} 40. Ne5 {[%clk 0:00:43.7]}
40... Nd5 {[%clk 0:00:58.8]} 41. Nc6+ {[%clk 0:00:42.4]} 41... Kd6 {[%clk
0:00:58.5]} 42. Ne5 {[%clk 0:00:43.3]} 42... Nf6 {[%clk 0:00:55.3]} 43. Ke2
{[%clk 0:00:41.6]} 43... Kd5 {[%clk 0:00:51.7]} 44. Kf3 {[%clk 0:00:41.3]} 44...
Bd6 {[%clk 0:00:51]} 45. Nd3 {[%clk 0:00:37.8]} 45... Ne4 {[%clk 0:00:46.1]} 46.
h3 {[%clk 0:00:36.4]} 46... Kc4 {[%clk 0:00:45.6]} 47. Ne1 {[%clk 0:00:32.3]}
47... Kc3 {[%clk 0:00:43.8]} 48. g4 {[%clk 0:00:31]} 48... g6 {[%clk 0:00:41.4]}
49. Ke2 {[%clk 0:00:28.4]} 49... Ba3 {[%clk 0:00:39]} 50. Nf3 {[%clk 0:00:26.4]}
50... Bd6 {[%clk 0:00:37.6]} 51. Nh4 {[%clk 0:00:17.2]} 51... Kc2 {[%clk
0:00:34.7]} 52. Nf3 {[%clk 0:00:17]} 52... Nc3+ {[%clk 0:00:34]} 53. Kf2 {[%clk
0:00:17.6]} 53... Kd3 {[%clk 0:00:33.6]} 54. Ne1+ {[%clk 0:00:17.9]} 54... Ke4
{[%clk 0:00:31.7]} 55. Ng2 {[%clk 0:00:17.2]} 55... Ba3 {[%clk 0:00:29.6]} 56.
gxf5 {[%clk 0:00:16]} 56... gxf5 {[%clk 0:00:29.1]} 57. Nh4 {[%clk 0:00:10.6]}
57... Nd1+ {[%clk 0:00:28.6]} 58. Ke2 {[%clk 0:00:09.9]} 58... Nxe3 {[%clk
0:00:29.5]} 59. Nf3 {[%clk 0:00:10.4]} 59... Nd5 {[%clk 0:00:27.7]} 60. Ng5+
{[%clk 0:00:10.3]} 60... Kxf4 {[%clk 0:00:26.3]} 61. Nxe6+ {[%clk 0:00:10.9]}
61... Kg3 {[%clk 0:00:26.8]} 62. Ng7 {[%clk 0:00:07.7]} 62... f4 {[%clk
0:00:23.9]} 63. Nh5+ {[%clk 0:00:07.3]} 63... Kg2 {[%clk 0:00:24.1]} 64. Nxf4+
{[%clk 0:00:08.2]} 64... Nxf4+ {[%clk 0:00:24.5]} 65. Ke3 {[%clk 0:00:08.6]}
65... Nxh3 {[%clk 0:00:25]} 66. Ke4 {[%clk 0:00:08]} 66... Kg3 {[%clk
0:00:24.6]} 67. Kf5 {[%clk 0:00:08.3]} 67... h5 {[%clk 0:00:24.5]} 68. d5 {[%clk
0:00:06.8]} 68... h4 {[%clk 0:00:25.4]} 0-1